bitfinex/quotes_BTCUSD_20220212
["timestamp","ask_amount","ask_price","bid_price","bid_amount"]
[1644691477766,0.00281147,42864.0,42863.0,0.92224262]
[1644691478167,0.00281147,42864.0,42863.0,1.02224262]
[1644691478564,0.00281147,42864.0,42863.0,2.25524262]
[1644691479264,0.00622061,42865.0,42864.0,0.029298]
[1644691479470,0.00622061,42865.0,42864.0,0.081598]
[1644691479765,0.01,42869.0,42865.0,0.35]
[1644691479966,0.01,42869.0,42867.0,1.349608]
[1644691480166,0.01,42869.0,42868.0,0.081591]
[1644691481416,0.00019943,42871.0,42868.0,0.081591]
[1644691481614,0.00019943,42874.0,42868.0,0.081591]
[1644691481814,0.00019943,42875.0,42868.0,0.081591]
[1644691482017,0.00020815,42872.0,42868.0,0.081591]
[1644691483116,0.00019943,42875.0,42868.0,0.36354181]
[1644691483316,0.00020815,42872.0,42868.0,0.46354181]
[1644691484117,0.00019943,42875.0,42868.0,0.181591]
[1644691484317,0.00060747,42872.0,42869.0,0.327068]
[1644691484521,0.06641255,42871.0,42870.0,0.0523]
[1644691484717,0.06641255,42871.0,42870.0,0.081586]
[1644691484982,0.06641255,42871.0,42870.0,0.131586]
[1644691485275,0.06641255,42871.0,42870.0,0.081586]
[1644691489419,0.06641255,42871.0,42869.0,0.00088113]
[1644691489623,0.27781052,42870.0,42869.0,0.00088113]
[1644691490419,0.06641255,42871.0,42869.0,0.00088113]
[1644691490619,0.39353855,42871.0,42869.0,0.00088113]
[1644691490819,0.06641255,42871.0,42861.0,0.45418483]
[1644691491023,0.06661198,42871.0,42861.0,0.3823777]
[1644691491618,0.00056612,42868.0,42861.0,0.3823777]
[1644691491820,0.00056612,42868.0,42862.0,0.023329]
[1644691492223,0.00056612,42868.0,42863.0,0.058326]
[1644691492475,0.06329397,42864.0,42863.0,0.058326]
[1644691492864,0.00056612,42868.0,42863.0,0.058326]
[1644691493464,0.00056612,42868.0,42864.0,0.26432553]
[1644691493664,0.00019943,42870.0,42864.0,0.26432553]
[1644691493864,0.00252741,42871.0,42864.0,0.26432553]
[1644691494065,0.00056612,42868.0,42864.0,0.26432553]
[1644691494267,0.07129264,42865.0,42864.0,0.59145153]
[1644691494465,0.07129264,42865.0,42864.0,0.26432553]
[1644691494666,0.07129264,42865.0,42864.0,0.327126]
[1644691495467,0.00056591,42868.0,42863.0,0.058326]
[1644691496215,0.00019943,42870.0,42863.0,0.058326]
[1644691496416,0.00056592,42868.0,42863.0,0.058326]
[1644691496617,0.06398678,42867.0,42865.0,0.327126]
[1644691496818,0.00056592,42868.0,42865.0,0.02927]
[1644691497422,0.00019943,42870.0,42865.0,0.02927]
[1644691497619,0.00020783,42869.0,42865.0,0.110908]
[1644691497818,0.00020783,42869.0,42867.0,0.32711]
[1644691498619,0.08116507,42873.0,42865.0,0.05]
[1644691498620,0.00019943,42870.0,42865.0,0.05]
[1644691498818,0.00056642,42870.0,42867.0,0.116621]
[1644691499021,0.00056642,42870.0,42865.0,0.05]
[1644691499218,0.00056642,42870.0,42866.0,0.327126]
[1644691499418,0.19911573,42870.0,42864.0,0.09847788]
[1644691499617,0.19911573,42870.0,42865.0,0.327126]
[1644691499818,0.19854931,42870.0,42865.0,0.377126]
[1644691500083,0.00056643,42869.0,42865.0,0.05]
[1644691500278,0.00076586,42869.0,42867.0,0.029259]
[1644691500480,0.00056643,42869.0,42866.0,0.116624]
[1644691500677,0.00056643,42869.0,42864.0,0.00182888]
[1644691500978,0.00019943,42869.0,42864.0,0.00182888]
[1644691501179,0.19911573,42870.0,42864.0,0.00182888]
[1644691501378,0.00019943,42869.0,42864.0,0.00182888]
[1644691501580,0.19931516,42870.0,42864.0,0.00182888]
[1644691501781,0.00019943,42869.0,42864.0,0.00182888]
[1644691501979,0.19911573,42870.0,42864.0,0.00182888]
[1644691502182,0.19854931,42870.0,42864.0,0.00182888]
[1644691502480,0.00056641,42869.0,42865.0,0.05832]
[1644691502683,0.00076584,42869.0,42865.0,0.05832]
[1644691502880,0.00318368,42869.0,42866.0,0.00085476]
[1644691503080,0.1148144,42864.0,42863.0,0.029254]
[1644691504318,0.1148144,42864.0,42863.0,0.087569]
[1644691506620,0.1148144,42864.0,42863.0,0.137569]
[1644691506823,0.1148144,42864.0,42863.0,0.187569]
[1644691507478,0.1148144,42864.0,42863.0,0.51590516]
[1644691507771,0.1148144,42864.0,42863.0,0.61590516]
[1644691507973,0.1148144,42864.0,42863.0,0.6166525]
[1644691508271,0.1148144,42864.0,42863.0,0.84672526]
[1644691508970,0.1148144,42864.0,42863.0,0.6166525]
[1644691509372,0.3195996,42864.0,42863.0,0.6166525]
[1644691509572,0.3195996,42864.0,42863.0,0.34061634]
[1644691509871,0.3195996,42864.0,42863.0,0.24061634]
[1644691510073,0.3195996,42864.0,42863.0,0.34061634]
[1644691510474,0.3195996,42864.0,42863.0,0.52257567]
[1644691510871,0.3195996,42864.0,42863.0,0.79261486]
[1644691511718,0.3195996,42864.0,42863.0,0.90756435]
[1644691511917,0.3195996,42864.0,42863.0,2.79396435]
[1644691512517,0.3195996,42864.0,42863.0,3.29396435]
[1644691513122,0.00056619,42868.0,42867.0,0.058304]
[1644691513320,0.00056619,42868.0,42867.0,1.787337]
[1644691513520,0.00056619,42868.0,42867.0,1.837337]
[1644691513820,0.00056619,42868.0,42867.0,2.16929633]
[1644691514219,0.00019943,42876.0,42870.0,0.07302076]
[1644691514421,0.09271498,42877.0,42872.0,0.087554]
[1644691514620,0.09271498,42877.0,42873.0,0.0523]
[1644691515071,0.005,42877.0,42873.0,0.0523]
[1644691515673,0.00556612,42877.0,42873.0,0.0523]
[1644691516570,0.005,42877.0,42873.0,0.0523]
[1644691516770,0.00556687,42877.0,42873.0,0.0523]
[1644691517771,0.005,42877.0,42873.0,0.0523]
[1644691517971,0.00556687,42877.0,42873.0,0.0523]
[1644691518174,0.00254655,42876.0,42874.0,0.00084231]
[1644691518371,0.00254655,42876.0,42875.0,0.0523]
[1644691519423,0.327126,42875.0,42874.0,0.00084231]
[1644691520422,0.55757626,42875.0,42874.0,0.00084231]
[1644691521023,0.80560764,42875.0,42874.0,0.00084231]
[1644691521222,0.65987626,42875.0,42874.0,0.00084231]
[1644691521624,1.24203087,42875.0,42874.0,0.00084231]
[1644691521822,0.99449164,42875.0,42874.0,0.00084231]
[1644691522021,0.99449164,42875.0,42861.0,0.18195933]
[1644691522022,0.00111799,42873.0,42861.0,0.18195933]
[1644691522222,0.23097309,42867.0,42861.0,0.18195933]
[1644691522479,0.23097309,42867.0,42860.0,0.11664]
[1644691522673,0.23097309,42867.0,42860.0,0.16664]
[1644691523074,0.23097309,42867.0,42859.0,0.00056701]
[1644691523075,1.24001272,42865.0,42846.0,0.69223905]
[1644691523277,0.06512207,42851.0,42848.0,0.327126]
[1644691523478,0.327126,42850.0,42847.0,0.18229114]
[1644691523676,0.327126,42850.0,42840.0,0.44607065]
[1644691523875,0.14874207,42851.0,42838.0,0.058356]
[1644691524280,0.2045806,42839.0,42836.0,0.18229114]
[1644691524476,0.2045806,42839.0,42834.0,0.18229114]
[1644691524776,0.2045806,42839.0,42835.0,0.327126]
[1644691525375,0.20133659,42841.0,42832.0,0.327126]
[1644691525575,0.0523,42845.0,42831.0,0.07157652]
[1644691525777,0.0523,42845.0,42832.0,0.327126]
[1644691526429,0.4,42853.0,42831.0,0.07157652]
[1644691526430,0.22128723,42842.0,42831.0,0.07157652]
[1644691526631,0.22128723,42842.0,42832.0,0.327126]
[1644691526828,0.22128723,42842.0,42832.0,0.45047]
[1644691527030,0.22128723,42842.0,42834.0,0.029585]
[1644691527229,0.22128723,42842.0,42835.0,0.058359]
[1644691527629,0.22128723,42842.0,42836.0,0.00060849]
[1644691528030,0.3,42846.0,42838.0,0.02954]
[1644691528234,0.00251177,42839.0,42837.0,0.07652329]
[1644691529978,0.00251177,42839.0,42837.0,0.10605829]
[1644691530172,0.00251177,42839.0,42837.0,0.07652329]
[1644691530372,0.00251177,42839.0,42837.0,0.38614329]
[1644691530572,0.00251177,42839.0,42837.0,0.00066629]
[1644691530973,0.26328216,42845.0,42834.0,0.116707]
[1644691531177,0.26328216,42845.0,42836.0,0.00060849]
[1644691531376,0.327126,42844.0,42836.0,0.00060849]
[1644691531575,0.28189455,42843.0,42836.0,0.00060849]
[1644691531775,0.26328216,42845.0,42836.0,0.00060849]
[1644691532174,0.26328216,42845.0,42839.0,0.058354]
[1644691532776,0.26328216,42845.0,42840.0,0.327126]
[1644691532974,0.26328216,42845.0,42839.0,0.058354]
[1644691533574,0.26328216,42845.0,42840.0,0.00060846]
[1644691533823,0.24774626,42847.0,42840.0,0.00060846]
[1644691534721,0.24774626,42847.0,42839.0,0.058354]
[1644691534921,0.24774626,42847.0,42841.0,0.00060844]
[1644691535923,0.24774626,42847.0,42842.0,0.00060844]
[1644691536925,0.24774626,42847.0,42839.0,0.058354]
[1644691537126,0.24774626,42847.0,42842.0,0.00060843]
[1644691537779,0.377126,42846.0,42842.0,0.00060843]
[1644691537977,0.05,42846.0,42842.0,0.00060843]
[1644691538178,0.327126,42845.0,42842.0,0.00147722]
[1644691538378,0.327126,42845.0,42842.0,0.00208566]
[1644691538580,0.05,42846.0,42842.0,0.00208566]
[1644691538778,0.25011061,42847.0,42842.0,0.00208566]
[1644691539479,0.25011061,42847.0,42842.0,0.00147722]
[1644691539680,0.25011061,42847.0,42842.0,0.00208565]
[1644691540181,0.377126,42846.0,42842.0,0.00208565]
[1644691540380,0.327126,42845.0,42842.0,0.00208565]
[1644691540580,0.327126,42844.0,42842.0,0.00147722]
[1644691540781,0.24565931,42836.0,42834.0,0.116707]
[1644691540982,0.24565931,42836.0,42835.0,0.32956012]
[1644691541423,0.00477973,42841.0,42835.0,0.32956012]
[1644691541624,0.00477973,42841.0,42835.0,0.00243412]
[1644691541822,0.00477973,42841.0,42834.0,0.116707]
[1644691542021,0.00477973,42841.0,42836.0,0.00060849]
[1644691542826,0.00477973,42841.0,42837.0,0.327126]
[1644691543024,0.00477973,42841.0,42839.0,0.087893]
[1644691543225,0.00477973,42841.0,42840.0,0.60687728]
[1644691544227,0.00477973,42841.0,42840.0,0.20687728]
[1644691544425,0.00236435,42847.0,42841.0,0.8]
[1644691544625,0.00236435,42847.0,42842.0,0.192893]
[1644691544987,0.00236435,42847.0,42845.0,0.079533]
[1644691545176,0.00236435,42847.0,42846.0,0.0467]
[1644691545380,0.00236435,42847.0,42846.0,0.12510026]
[1644691547283,0.00236435,42847.0,42846.0,0.0467]
[1644691550727,0.00236435,42847.0,42846.0,0.153551]
[1644691550928,0.00236435,42847.0,42846.0,0.0467]
[1644691554791,0.00236435,42847.0,42846.0,0.153551]
[1644691554990,0.00236435,42847.0,42846.0,0.0467]
[1644691556425,0.00236435,42847.0,42846.0,0.153551]
[1644691556726,0.00236435,42847.0,42846.0,0.0467]
[1644691558327,0.00056387,42854.0,42846.0,0.24461087]
[1644691558532,0.00056387,42854.0,42848.0,1.291327]
[1644691558734,0.00019943,42872.0,42857.0,0.07858719]
[1644691558735,0.72441658,42872.0,42857.0,0.07858719]
[1644691558934,0.00225483,42868.0,42858.0,0.35243362]
[1644691559130,0.00225483,42868.0,42858.0,0.34786927]
[1644691559330,0.46867551,42868.0,42860.0,0.10681]
[1644691559529,0.46867551,42868.0,42860.0,0.0467]
[1644691559730,0.46867551,42868.0,42861.0,0.058317]
[1644691559983,0.46642068,42868.0,42861.0,0.058317]
[1644691560180,0.0005638,42866.0,42861.0,0.058317]
[1644691560976,0.0005638,42866.0,42861.0,0.105017]
[1644691561177,0.46642068,42868.0,42861.0,0.105017]
[1644691561378,0.00056381,42866.0,42861.0,0.105017]
[1644691562179,0.00056381,42866.0,42862.0,0.153803]
[1644691562379,0.25149156,42868.0,42862.0,0.017496]
[1644691562582,0.0005668,42866.0,42862.0,0.017496]
[1644691563078,0.0005668,42866.0,42863.0,0.0467]
[1644691563279,0.0005668,42866.0,42864.0,0.2739847]
[1644691563479,0.0024081,42868.0,42865.0,0.182996]
[1644691563728,0.25900649,42867.0,42866.0,0.058319]
[1644691563930,0.25900649,42867.0,42866.0,0.105019]
[1644691564731,0.2584397,42867.0,42866.0,0.105019]
[1644691565331,0.0024081,42868.0,42866.0,0.105019]
[1644691565531,0.0024081,42868.0,42867.0,0.136288]
[1644691568185,0.0024081,42868.0,42867.0,0.28223357]
[1644691568782,0.0024081,42868.0,42867.0,0.32893357]
[1644691568983,0.0024081,42868.0,42867.0,0.0467]
[1644691569885,0.0024081,42868.0,42866.0,0.0008435]
[1644691570083,0.22822782,42867.0,42866.0,0.0008435]
[1644691570786,0.22822782,42867.0,42861.0,0.10251922]
[1644691570983,0.0024081,42868.0,42861.0,0.10251922]
[1644691572226,0.23302836,42863.0,42862.0,0.136303]
[1644691572831,0.00057648,42867.0,42862.0,0.136303]
[1644691573128,0.0024081,42868.0,42863.0,0.136303]
[1644691573328,0.00056542,42867.0,42864.0,0.136299]
[1644691573727,0.00056542,42867.0,42862.0,0.2900528]
[1644691573929,0.00056542,42867.0,42863.0,0.136302]
[1644691574130,0.00056542,42867.0,42862.0,0.2900528]
[1644691574331,0.0024081,42868.0,42863.0,0.136303]
[1644691574528,0.00056541,42867.0,42863.0,0.136303]
[1644691575390,0.00056541,42867.0,42863.0,0.236303]
[1644691575587,0.0024081,42868.0,42863.0,0.1]
[1644691575786,0.00056541,42867.0,42862.0,0.49821997]
[1644691575985,0.00056541,42867.0,42863.0,0.136303]
[1644691576186,0.00056541,42867.0,42864.0,0.136299]
[1644691576385,0.00056541,42867.0,42865.0,0.136295]
[1644691576587,0.00056541,42867.0,42863.0,0.136303]
[1644691576886,0.0024081,42868.0,42863.0,0.136303]
[1644691576887,0.00297425,42868.0,42863.0,0.136303]
[1644691577086,0.00297425,42868.0,42864.0,0.136299]
[1644691577388,0.00297425,42868.0,42866.0,0.212097]
[1644691577586,0.00297425,42868.0,42867.0,0.46441141]
[1644691577988,0.0024081,42868.0,42867.0,0.46441141]
[1644691581428,0.0024081,42868.0,42867.0,0.182987]
[1644691584895,0.0024081,42868.0,42867.0,0.45581426]
[1644691585899,0.0024081,42868.0,42867.0,0.26255222]
[1644691586098,0.0024081,42868.0,42867.0,0.182987]
[1644691587726,0.0024081,42868.0,42867.0,0.172987]
[1644691588730,0.0024081,42868.0,42867.0,0.126287]
[1644691591688,0.0024081,42868.0,42867.0,0.172987]
[1644691593088,0.0024081,42868.0,42867.0,0.126287]
[1644691593491,0.0024081,42868.0,42866.0,0.116625]
[1644691593734,0.0024081,42868.0,42863.0,0.1188]
[1644691593735,0.19816085,42867.0,42863.0,0.1188]
[1644691593931,0.19816085,42867.0,42860.0,0.116642]
[1644691594530,0.19816085,42867.0,42861.0,0.126313]
[1644691594930,0.00060793,42866.0,42861.0,0.126313]
[1644691596033,0.19816085,42867.0,42860.0,0.116642]
[1644691596235,0.19816085,42867.0,42861.0,0.126313]
[1644691596236,0.00060793,42866.0,42861.0,0.126313]
[1644691597232,0.19816085,42867.0,42860.0,0.116642]
[1644691597484,0.00060793,42866.0,42860.0,0.116642]
[1644691597678,0.00060793,42866.0,42861.0,0.126313]
[1644691597878,0.00060793,42866.0,42862.0,0.00112033]
[1644691598279,0.20028532,42867.0,42862.0,0.00112033]
[1644691598680,0.00060793,42866.0,42862.0,0.00112033]
[1644691599480,0.27451048,42866.0,42862.0,0.00112033]
[1644691599681,0.327135,42865.0,42862.0,0.00112033]
[1644691600882,0.00224065,42859.0,42853.0,0.126338]
[1644691601082,0.00224065,42859.0,42852.0,0.1175]
[1644691601326,0.00224065,42859.0,42853.0,0.126347]
[1644691601627,0.00224065,42859.0,42854.0,0.058334]
[1644691602227,0.00244972,42859.0,42854.0,0.058334]
[1644691602826,0.24895372,42859.0,42854.0,0.058334]
[1644691603226,0.24874465,42859.0,42854.0,0.058334]
[1644691603429,0.24935235,42859.0,42854.0,0.058334]
[1644691604430,0.24874465,42859.0,42854.0,0.058334]
[1644691604630,0.24935235,42859.0,42854.0,0.058334]
[1644691605488,0.24874465,42859.0,42854.0,0.058334]
[1644691605887,0.24935235,42859.0,42854.0,0.058334]
[1644691606691,0.24874465,42859.0,42854.0,0.058334]
[1644691606993,0.24935235,42859.0,42854.0,0.058334]
[1644691607190,0.52310235,42859.0,42854.0,0.058334]
[1644691607789,0.25146602,42859.0,42854.0,0.058334]
[1644691607990,0.25085832,42859.0,42854.0,0.058334]
[1644691608189,0.25146602,42859.0,42854.0,0.058334]
[1644691609231,0.25085832,42859.0,42854.0,0.058334]
[1644691609432,0.25146602,42859.0,42854.0,0.058334]
[1644691610334,0.25085832,42859.0,42854.0,0.058334]
[1644691610535,0.00435432,42859.0,42854.0,0.058334]
[1644691610734,0.00496202,42859.0,42854.0,0.058334]
[1644691611537,0.00435432,42859.0,42854.0,0.058334]
[1644691611735,0.00496202,42859.0,42854.0,0.058334]
[1644691612780,0.00435432,42859.0,42854.0,0.058334]
[1644691612983,0.00496202,42859.0,42854.0,0.058334]
[1644691613982,0.00435432,42859.0,42854.0,0.058334]
[1644691614183,0.00496202,42859.0,42854.0,0.058334]
[1644691615184,0.00435432,42859.0,42854.0,0.058334]
[1644691615383,0.00496202,42859.0,42854.0,0.058334]
[1644691616434,0.00435432,42859.0,42854.0,0.058334]
[1644691616634,0.00496202,42859.0,42854.0,0.058334]
[1644691617637,0.00435432,42859.0,42854.0,0.058334]
[1644691617835,0.00496202,42859.0,42854.0,0.058334]
[1644691618436,0.00496202,42859.0,42855.0,0.017499]
[1644691618837,0.00435432,42859.0,42855.0,0.017499]
[1644691619038,0.00496201,42859.0,42855.0,0.017499]
[1644691620084,0.00435432,42859.0,42855.0,0.23651611]
[1644691620289,0.00496201,42859.0,42857.0,0.11665]
[1644691620487,0.00496201,42859.0,42858.0,0.178629]
[1644691620885,0.00496201,42859.0,42858.0,0.228629]
[1644691621085,0.00435432,42859.0,42858.0,0.228629]
[1644691622986,0.00428649,42859.0,42858.0,0.228629]
[1644691623586,0.00428649,42859.0,42858.0,0.314429]
[1644691623840,0.00019943,42872.0,42862.0,0.27676123]
[1644691624038,0.00111799,42873.0,42864.0,0.6539]
[1644691624240,0.00019943,42872.0,42866.0,0.116617]
[1644691624439,0.00019943,42872.0,42867.0,0.126288]
[1644691624640,0.00111799,42873.0,42867.0,0.178588]
[1644691624842,0.00019943,42872.0,42867.0,0.178588]
[1644691625040,0.00060793,42872.0,42867.0,0.178588]
[1644691625240,0.00080736,42872.0,42867.0,0.178588]
[1644691625442,0.21619702,42868.0,42867.0,0.178588]
[1644691626241,0.21619702,42868.0,42867.0,0.17859]
[1644691627491,0.00019943,42872.0,42868.0,0.126285]
[1644691627492,0.00060795,42870.0,42868.0,0.126285]
[1644691627684,0.00060795,42870.0,42869.0,0.0523]
[1644691628088,0.00060795,42870.0,42869.0,0.178581]
[1644691628286,0.00060795,42870.0,42869.0,0.29623393]
[1644691628485,0.0023303,42872.0,42870.0,0.126277]
[1644691628687,0.00213087,42872.0,42870.0,0.178577]
[1644691628885,0.0027388,42872.0,42870.0,0.178577]
[1644691629487,0.00213087,42872.0,42870.0,0.178577]
[1644691631234,0.00213087,42872.0,42870.0,0.286885]
[1644691631732,0.00213087,42872.0,42870.0,0.178577]
[1644691631934,0.00213087,42872.0,42870.0,0.178576]
[1644691632934,0.00152205,42872.0,42871.0,0.00091805]
[1644691633137,0.00152205,42872.0,42871.0,0.12719005]
[1644691633334,0.00152205,42872.0,42871.0,0.00091805]
[1644691633735,0.00152205,42872.0,42870.0,0.17674]
[1644691634738,0.25265727,42873.0,42870.0,0.175978]
[1644691634995,0.25245784,42873.0,42870.0,0.175978]
[1644691635596,0.25184939,42873.0,42870.0,0.175978]
[1644691635995,0.25184939,42873.0,42870.0,0.051538]
[1644691636696,0.25184939,42873.0,42871.0,0.124436]
[1644691636896,0.25184939,42873.0,42869.0,0.116618]
[1644691637095,0.00131742,42873.0,42870.0,0.124439]
[1644691637297,0.00111799,42873.0,42870.0,0.124439]
[1644691637897,0.00111799,42873.0,42871.0,0.0523]
[1644691638097,0.00111799,42873.0,42872.0,0.124433]
[1644691638733,0.00111799,42873.0,42872.0,0.124432]
[1644691639334,0.00019943,42875.0,42871.0,0.05396778]
[1644691639534,0.00019943,42874.0,42873.0,0.182736]
[1644691639734,0.00057061,42875.0,42874.0,0.124424]
[1644691640335,0.00519943,42877.0,42874.0,0.124424]
[1644691640534,0.005,42877.0,42873.0,0.058308]
[1644691640737,0.00577002,42877.0,42871.0,0.05396778]
[1644691641139,0.327132,42876.0,42871.0,0.00166778]
[1644691641338,0.32733143,42876.0,42871.0,0.00166778]
[1644691641836,0.327132,42872.0,42871.0,0.00166778]
[1644691642139,0.377132,42872.0,42871.0,0.00166778]
[1644691642592,0.327132,42872.0,42871.0,0.00166778]
[1644691642995,0.377132,42872.0,42871.0,0.00166778]
[1644691643290,0.62949501,42872.0,42870.0,0.00087192]
[1644691643493,0.62353931,42871.0,42870.0,0.00087192]
[1644691646230,0.70794164,42871.0,42870.0,0.00087192]
[1644691646834,0.69294164,42871.0,42870.0,0.00087192]
[1644691647235,0.60853931,42871.0,42870.0,0.00087192]
[1644691647436,0.27446764,42871.0,42870.0,0.00087192]
[1644691647635,0.327132,42871.0,42870.0,0.00087192]
[1644691647835,0.25236301,42872.0,42870.0,0.00173155]
[1644691649737,0.20059616,42873.0,42870.0,0.00173155]
[1644691650002,0.2,42873.0,42870.0,0.00173155]
[1644691650191,0.327132,42872.0,42870.0,0.00173155]
[1644691650392,0.2,42873.0,42870.0,0.00173155]
[1644691650591,0.327132,42872.0,42870.0,0.00173155]
[1644691650791,0.2,42873.0,42870.0,0.00173155]
[1644691651598,0.2713408,42872.0,42870.0,0.00173155]
[1644691654036,0.327132,42871.0,42870.0,0.00173155]
[1644691654233,0.29871583,42871.0,42870.0,0.00173155]
[1644691654532,0.62584783,42871.0,42870.0,0.00173155]
[1644691654733,0.29871583,42871.0,42870.0,0.00173155]
[1644691654932,0.67584783,42871.0,42870.0,0.00173155]
[1644691655132,0.62584783,42871.0,42870.0,0.00173155]
[1644691659188,0.29871583,42871.0,42870.0,0.00173155]
[1644691659384,0.327132,42871.0,42870.0,0.00173155]
[1644691659886,0.2005725,42873.0,42870.0,0.00173155]
[1644691660485,0.327132,42872.0,42870.0,0.00173155]
[1644691660686,0.60278245,42871.0,42870.0,0.00173155]
[1644691660886,0.27565045,42871.0,42870.0,0.00173155]
[1644691661085,0.60278245,42871.0,42870.0,0.00173155]
[1644691661746,0.27565045,42871.0,42870.0,0.00173155]
[1644691661946,0.327132,42871.0,42870.0,0.00173155]
[1644691662145,0.61919502,42871.0,42870.0,0.00173155]
[1644691662946,0.327132,42871.0,42870.0,0.00173155]
[1644691663147,0.61017155,42871.0,42870.0,0.00173155]
[1644691663747,0.0034631,42866.0,42860.0,0.1162]
[1644691663947,0.0034631,42866.0,42863.0,0.058323]
[1644691664991,0.24845605,42865.0,42860.0,0.1162]
[1644691665185,0.24845605,42865.0,42855.0,0.116656]
[1644691665384,0.24845605,42865.0,42857.0,0.12449]
[1644691665985,0.0005726,42863.0,42857.0,0.12449]
[1644691666887,0.24845605,42865.0,42857.0,0.12449]
[1644691667086,0.00057261,42862.0,42857.0,0.12449]
[1644691668085,0.24845605,42865.0,42857.0,0.12449]
[1644691668287,0.00052943,42862.0,42858.0,0.058326]
[1644691668486,0.00052943,42862.0,42859.0,0.124488]
[1644691669340,0.24845605,42865.0,42859.0,0.124488]
[1644691669543,0.00052942,42863.0,42859.0,0.124488]
[1644691670544,0.24845605,42865.0,42858.0,0.058326]
[1644691670745,0.00053086,42863.0,42858.0,0.058326]
[1644691671346,0.00053086,42863.0,42858.0,0.033326]
[1644691671747,0.24845605,42865.0,42858.0,0.033326]
[1644691671947,0.00053086,42863.0,42858.0,0.033326]
[1644691672788,0.24845605,42865.0,42858.0,0.033326]
[1644691672990,0.24845605,42865.0,42861.0,0.00151569]
[1644691673186,0.00053373,42863.0,42861.0,0.00151569]
[1644691673389,0.0523,42862.0,42861.0,0.00151569]
[1644691673592,0.679432,42862.0,42861.0,0.00151569]
[1644691673789,0.379432,42862.0,42861.0,0.00151569]
[1644691675390,0.20407539,42853.0,42852.0,0.09911569]
[1644691675590,0.20407539,42853.0,42850.0,0.17545207]
[1644691675792,0.20407539,42853.0,42849.0,0.17568726]
[1644691675991,0.20407539,42853.0,42848.0,0.116675]
[1644691676638,0.20407539,42853.0,42848.0,0.1172486]
[1644691677737,0.20407539,42853.0,42848.0,0.116675]
[1644691677938,0.20407539,42853.0,42848.0,0.11726049]
[1644691678938,0.20407539,42853.0,42848.0,0.116675]
[1644691679138,0.20407539,42853.0,42848.0,0.11726049]
[1644691679995,0.20407539,42853.0,42848.0,0.116675]
[1644691680192,0.20407539,42853.0,42848.0,0.11726049]
[1644691681190,0.20407539,42853.0,42848.0,0.116675]
[1644691681389,0.20407539,42853.0,42848.0,0.11724636]
[1644691682190,0.20407539,42853.0,42848.0,0.00057136]
[1644691682392,0.20407539,42853.0,42846.0,0.00023519]
[1644691682590,0.20407539,42853.0,42848.0,0.00057136]
[1644691683191,0.00192929,42852.0,42850.0,0.00133374]
[1644691684038,0.00057129,42854.0,42850.0,0.00133374]
[1644691684538,0.00057129,42854.0,42848.0,0.01048329]
[1644691684738,0.00057129,42854.0,42848.0,0.0102481]
[1644691684938,0.21554008,42855.0,42848.0,0.0102481]
[1644691685139,0.25310683,42851.0,42848.0,0.0102481]
[1644691686640,0.114,42859.0,42848.0,0.0102481]
[1644691687493,0.1934411,42857.0,42848.0,0.0102481]
[1644691687687,0.44882133,42857.0,42848.0,0.0102481]
[1644691688088,0.25538023,42857.0,42848.0,0.0102481]
[1644691688488,0.327132,42856.0,42852.0,0.00118332]
[1644691688688,0.00060762,42855.0,42852.0,0.00118332]
[1644691689689,0.327132,42856.0,42852.0,0.00118332]
[1644691689888,0.32773961,42856.0,42852.0,0.00118332]
[1644691690890,0.327132,42856.0,42852.0,0.00118332]
[1644691691340,0.32773961,42856.0,42852.0,0.00118332]
[1644691692041,0.327132,42856.0,42852.0,0.00118332]
[1644691692540,0.32773961,42856.0,42852.0,0.00118332]
[1644691693041,0.32773961,42856.0,42848.0,0.05975907]
[1644691693239,0.25538023,42857.0,42848.0,0.05975907]
[1644691693441,0.00060761,42856.0,42848.0,0.05952388]
[1644691693640,0.00060761,42856.0,42848.0,0.05975907]
[1644691694440,0.25538023,42857.0,42848.0,0.05975907]
[1644691694640,0.25538023,42857.0,42848.0,0.05952388]
[1644691694840,0.00060762,42854.0,42848.0,0.05975907]
[1644691695690,0.25538023,42857.0,42848.0,0.05975907]
[1644691695888,0.00060763,42853.0,42848.0,0.05952388]
[1644691696287,0.22863079,42853.0,42848.0,0.05952388]
[1644691696488,0.327132,42852.0,42848.0,0.00118088]
[1644691696688,0.327132,42851.0,42848.0,0.00118088]
[1644691696887,0.22802316,42853.0,42848.0,0.00118088]
[1644691697089,0.327132,42852.0,42848.0,0.00118088]
[1644691697287,0.22863079,42853.0,42848.0,0.00118088]
[1644691697489,0.327132,42852.0,42848.0,0.00118088]
[1644691697688,0.22863079,42853.0,42848.0,0.00118088]
[1644691697888,0.22863079,42853.0,42847.0,0.00202866]
[1644691698090,0.22802316,42853.0,42847.0,0.00118575]
[1644691698291,0.2286308,42853.0,42847.0,0.00179347]
[1644691699336,0.22802316,42853.0,42847.0,0.00118575]
[1644691699634,0.22863079,42853.0,42847.0,0.00179347]
[1644691700435,0.22802316,42853.0,42847.0,0.00118575]
[1644691700635,0.22863079,42853.0,42847.0,0.00179347]
[1644691701237,0.327132,42852.0,42847.0,0.00179347]
[1644691701736,0.327132,42852.0,42847.0,0.00118575]
[1644691701937,0.327132,42852.0,42847.0,0.00179347]
[1644691702787,0.327132,42852.0,42847.0,0.00118575]
[1644691702989,0.327132,42852.0,42847.0,0.00060772]
[1644691703187,0.31482619,42852.0,42847.0,0.00060772]
[1644691703991,0.31482619,42852.0,42846.0,0.00023519]
[1644691704290,0.31482619,42852.0,42845.0,0.00103859]
[1644691704291,0.31482619,42852.0,42847.0,0.00060772]
[1644691705293,0.31482619,42852.0,42846.0,0.00023519]
[1644691705493,0.31482619,42852.0,42847.0,0.00060772]
[1644691706539,0.31482619,42852.0,42846.0,0.00023519]
[1644691706738,0.31482619,42852.0,42847.0,0.00060772]
[1644691707752,0.31482619,42852.0,42849.0,0.00103859]
[1644691708340,0.00060763,42853.0,42849.0,0.00103859]
[1644691708942,0.4839,42865.0,42849.0,0.00103859]
[1644691709139,0.00060763,42853.0,42849.0,0.00103859]
[1644691709741,0.00060763,42853.0,42850.0,0.0523]
[1644691709993,0.26066259,42859.0,42851.0,0.31523328]
[1644691710188,0.327149,42858.0,42851.0,0.36753328]
[1644691710389,0.00060763,42854.0,42851.0,0.36753328]
[1644691711092,0.00060763,42854.0,42853.0,0.07615521]
[1644691711289,0.26066259,42859.0,42853.0,0.12845521]
[1644691711490,0.00060762,42855.0,42853.0,0.12845521]
[1644691712590,0.327149,42858.0,42853.0,0.12845521]
[1644691712789,0.00060761,42856.0,42853.0,0.12845521]
[1644691712991,0.00060761,42856.0,42854.0,0.136812]